Cogmind - Beta 12 --- EXPLORER MODE // 2023.05.17 @ 22:04:17 Player: Sardaukar Result: Escaped! Performance ------------- Evolutions (9) 4500 Regions Visited (15) 3000 Robots Destroyed (320) 1600 Value Destroyed (15252) 15252 Prototype IDs (83) 1660 Alien Tech Used (0) 0 Bonus (4662) 4662 TOTAL SCORE: 30674 Bonus ------- High Alert Combat Kills 149 Follower Combat Kills 668 Network Hubs Disabled 400 Met R17 at Cetus 500 Win 3000 Friendly Fire -55 Cogmind --------- Core Integrity 1393/1600 Matter 280/300 Energy 583/600 System Corruption 3% Temperature Cool (13) Movement Treading (160) Location To Epsilon Eridani Parts ------- > --- POWER (2) -------- Quantum Reactor Quantum Reactor > --- PROPULSION (6) --- Medium Treads Centrium Heavy Treads Advanced Heavy Siege Treads Centrium Wheel > --- UTILITY (15) ----- Experimental Heat Sink Advanced Cooling System Huge Storage Unit Experimental Optical Array Experimental Sensor Array Experimental Signal Interpreter Experimental Terrain Scan Processor Experimental Target Analyzer Advanced Transmission Jammer Heavy Armor Plating Improved Hacking Suite Advanced Hacking Suite Improved System Shield Improved System Shield > --- WEAPON (3) ------- Advanced Variable Charge Gun Advanced KE Penetrator Helical Railgun > --- INVENTORY (25) --- Particle Reactor Micro Antimatter Reactor Quantum Reactor Experimental Heat Sink Experimental Energy Well (600) Long-range Sensor Array Experimental Terrain Scanner Graphene Brace Thermal Barrier Improved System Shield Improved Dynamic Insulation System Advanced System Restoration Module Improved Recalibrator Phase Gun Quantum Rifle Precision Phase Gun Railgun Railgun Railgun Advanced KE Penetrator Advanced KE Penetrator Helical Railgun Perforator Micro-nuke Launcher Peak State ------------ > --- POWER ------------ Quantum Reactor Quantum Reactor > --- PROPULSION ------- Centrium Heavy Treads Centrium Heavy Treads Centrium Heavy Treads > --- UTILITY ---------- Huge Storage Unit Experimental Optical Array Experimental Sensor Array Experimental Signal Interpreter Experimental Terrain Scanner Experimental Terrain Scan Processor Advanced Target Analyzer Experimental Target Analyzer Advanced Transmission Jammer Thermal Barrier Improved Hacking Suite Advanced Hacking Suite Improved System Shield Improved System Shield Improved Dynamic Insulation System > --- WEAPON ----------- Advanced Variable Charge Gun Helical Railgun Helical Railgun > --- INVENTORY -------- Quantum Reactor Advanced Heavy Siege Treads Experimental Heat Sink Experimental Heat Sink Advanced Cooling System Experimental Energy Well Long-range Sensor Array Experimental Target Analyzer Experimental Target Analyzer Improved Medium Armor Plating Graphene Brace Improved System Shield Advanced System Restoration Module Improved Recalibrator Drone Bay Precision Phase Gun Railgun Advanced KE Penetrator Advanced KE Penetrator Advanced KE Penetrator Perforator Micro-nuke Launcher [Rating: 219] Favorites ----------- Power Quantum Reactor Engine Light Deuterium Engine Power Core Fission Core Reactor Quantum Reactor Propulsion Centrium Heavy Treads Treads Centrium Heavy Treads Wheel Armored Huge Wheel Utility Improved Hacking Suite Device Advanced Sensor Array Storage Large Storage Unit Processor Improved Signal Interpreter Hackware Improved Hacking Suite Protection Centrium Medium Armor Plating Weapon Advanced KE Penetrator Energy Gun Advanced Variable Charge Gun Energy Cannon Heavy Particle Cannon Ballistic Gun Advanced KE Penetrator Ballistic Cannon Perforator Launcher EMP Blaster Special Weapon Mining Laser Build | -11 -10 -9 -8 -7 -6 -6 -6 -6 -6 -5 -4 -3 -3 -2 -1 ------- Run | Jun Mat Mat Mat Fac Fac Ext Cet Arc Hub Fac Fac Res Tes Res Acc Slots Evolved 19 | . 1 2 2 2 2 . . . . 2 2 2 . 2 2 Power 1 | . . . . . . . . . . . . . . . 1 Propulsion 4 | . . . 2 2 . . . . . . . . . . . Utility 13 | . 1 2 . . 2 . . . . 2 1 2 . 2 1 Weapon 1 | . . . . . . . . . . . 1 . . . . Parts Attached 379 | 6 8 30 17 14 16 16 22 6 4 36 44 45 37 25 53 Power 23 | 1 1 2 1 2 1 . 1 1 . 3 . 1 . 1 8 Engine 5 | 1 1 2 1 . . . . . . . . . . . . Core 3 | . . . . 2 1 . . . . . . . . . . Reactor 15 | . . . . . . . 1 1 . 3 . 1 . 1 8 Propulsion 34 | 2 . 2 8 3 . . 3 2 . 3 . 1 3 . 7 Treads 26 | 2 . 2 6 . . . 3 2 . 3 . 1 3 . 4 Leg . | . . . . . . . . . . . . . . . . Wheel 8 | . . . 2 3 . . . . . . . . . . 3 Hover . | . . . . . . . . . . . . . . . . Flight . | . . . . . . . . . . . . . . . . Utility 238 | 2 4 12 4 7 12 13 10 2 4 25 42 37 23 13 28 Device 136 | . 2 5 3 4 7 3 5 . 3 15 24 21 12 10 22 Storage 7 | 1 1 . . . 1 . . . . . 2 1 1 . . Processor 18 | . . 1 1 1 . 3 2 . . 1 . 3 4 . 2 Hackware 13 | . . . . . 1 1 . 1 . 3 1 2 1 2 1 Protection 64 | 1 1 6 . 2 3 6 3 1 1 6 15 10 5 1 3 Artifact . | . . . . . . . . . . . . . . . . Weapon 84 | 1 3 14 4 2 3 3 8 1 . 5 2 6 11 11 10 Energy Gun 31 | . 1 6 2 2 2 1 2 . . 2 . . 3 4 6 Energy Cannon 6 | . 1 2 1 . . . 1 . . . . . 1 . . Ballistic Gun 33 | 1 . 2 . . . 1 4 1 . 3 2 6 6 5 2 Ballistic Cannon 1 | . . . . . . . . . . . . . 1 . . Launcher 12 | . . 4 1 . 1 1 1 . . . . . . 2 2 Special Weapon 1 | . 1 . . . . . . . . . . . . . . Impact Weapon . | . . . . . . . . . . . . . . . . Slashing Weapon . | . . . . . . . . . . . . . . . . Piercing Weapon . | . . . . . . . . . . . . . . . . Special Melee Weapon . | . . . . . . . . . . . . . . . . Unidentified Prototypes 12 | . . . . 1 . . 4 . . . 2 . 5 . . Parts Lost 27 | . 1 3 . 1 . 1 7 . . 3 . . 4 2 5 Power 2 | . . . . . . . . . . . . . . . 2 Propulsion 5 | . . . . . . . 3 . . . . . . . 2 Utility 13 | . . 2 . . . 1 3 . . 1 . . 3 2 1 Weapon 7 | . 1 1 . 1 . . 1 . . 2 . . 1 . . Highest Loss Streak 6 | . 1 2 . 1 . 1 6 . . 2 . . 3 1 2 To Critical Strikes 3 | . . . . . . . 3 . . . . . . . . Average Slot Usage (%) 85 | . 97 98 94 77 79 80 77 80 81 81 85 85 84 82 87 Engine 1 | . 12 10 7 2 . . . . . . . . . . . Reactor 3 | . . . . . . . 1 6 6 5 5 3 4 4 6 Treads 12 | . 25 19 26 . . . 10 18 18 15 15 12 12 12 10 Wheel 3 | . . . 2 21 18 18 4 . . . . . . . . Device 12 | . 13 17 15 13 15 7 15 11 11 9 9 7 7 15 18 Storage 5 | . 12 10 8 7 6 6 6 6 6 5 5 4 4 4 3 Processor 14 | . . 10 9 14 12 16 18 18 18 14 15 13 18 16 17 Hackware 11 | . . . . . 4 4 . 1 6 16 20 26 19 12 14 Protection 3 | . 9 11 6 . 2 6 1 5 . 1 . 1 3 4 1 Energy Gun 3 | . 4 3 9 12 10 6 4 . . 3 . . 1 3 4 Energy Cannon 1 | . 5 10 5 1 . . . . . . . . . . . Ballistic Gun 7 | . 12 2 . . . 4 6 11 12 6 15 12 10 7 5 Naked Turns . | . . . . . . . . . . . . . . . . Heaviest Build 156 | 17 29 44 44 38 45 45 61 62 60 60 92 132 132 139 156 Greatest Support 240 | 40 40 43 90 84 84 84 240 240 240 240 240 240 240 240 240 Greatest Overweight (x) 1 | . . 1 1 . . . 1 . . . . . . . . Average Overweight (x) . | . . . . . . . . . . . . . . . . Largest Inventory Capacity 25 | 10 15 15 15 15 15 15 15 15 15 15 20 25 25 25 25 Average Capacity 18 | 7 12 15 15 15 15 15 15 15 15 15 17 23 25 25 25 Most Carried 25 | . 5 15 15 15 15 15 15 15 15 15 18 20 25 25 25 Average Carried 15 | . 2 10 13 14 12 12 13 13 15 13 13 17 21 22 21 Final Capacity 25 | 10 15 15 15 15 15 15 15 15 15 15 20 25 25 25 25 Final Carried 25 | . 5 15 15 15 12 15 14 15 15 15 18 20 21 22 25 Class Distribution -------------------- 35% | Wizard-Skirmisher 26% | Hacker-Mutant 20% | Hacker-Skirmisher 5% | Scavenger-Skirmisher 4% | Scavenger-Mutant 3% | Wizard-Mutant Dominant Class ---------------- Hacker-Mutant | -10/Materials Hacker-Mutant | -9/Materials Hacker-Mutant | -8/Materials Hacker-Skirmisher | -7/Factory Hacker-Skirmisher | -6/Factory Hacker-Mutant | -6/Extension Scavenger-Mutant | -6/Cetus Scavenger-Mutant | -6/Archives Scavenger-Skirmisher | -6/Hub_04(d) Hacker-Mutant | -5/Factory Wizard-Skirmisher | -4/Factory Wizard-Skirmisher | -3/Research Wizard-Skirmisher | -3/Testing Hacker-Skirmisher | -2/Research Wizard-Skirmisher | -1/Access Resources | -11 -10 -9 -8 -7 -6 -6 -6 -6 -6 -5 -4 -3 -3 -2 -1 ----------- Run | Jun Mat Mat Mat Fac Fac Ext Cet Arc Hub Fac Fac Res Tes Res Acc Matter Collected 8666 | 72 271 382 138 160 183 400 415 276 418 602 1303 1055 993 648 1350 Remotely . | . . . . . . . . . . . . . . . . Salvage Created 16684 | . 449 1597 446 632 541 617 654 657 2037 854 2001 1369 575 1106 3149 Parts 906 | . 35 105 16 33 24 37 32 42 89 64 114 79 31 60 145 Haulers Intercepted 14 | . 2 2 . . 1 . . . 3 1 . 1 . 1 3 Recyclers Shooed 9 | . . . . . 1 1 . . . . 1 2 . 2 2 Parts Field Recycled . | . . . . . . . . . . . . . . . . Retrieved Matter . | . . . . . . . . . . . . . . . . Parts Self-Destructed . | . . . . . . . . . . . . . . . . Prevented . | . . . . . . . . . . . . . . . . Kills | -11 -10 -9 -8 -7 -6 -6 -6 -6 -6 -5 -4 -3 -3 -2 -1 ------- Run | Jun Mat Mat Mat Fac Fac Ext Cet Arc Hub Fac Fac Res Tes Res Acc Combat Hostiles Destroyed 208 | . 8 24 7 9 4 10 11 4 16 13 30 14 5 13 40 Guns 153 | . 7 11 3 5 2 7 7 4 8 10 29 14 5 11 30 Cannons 13 | . 1 9 2 . . . 1 . . . . . . . . AOE 36 | . . 4 1 3 1 3 3 . 6 3 1 . . 2 9 Classes Destroyed 15 | . 3 8 . 1 . . . . 3 . . . . . . Worker 12 | . . . . . . . . . 5 . 5 . . . 2 Builder 18 | . . 6 . 1 1 . . . 3 3 2 1 1 . . Tunneler 2 | . . . . . . . . . 2 . . . . . . Hauler 14 | . 2 2 . . 1 . . . 3 1 . 1 . 1 3 Recycler 14 | . . 1 . 2 1 . . . 3 . 2 2 1 1 1 Mechanic 1 | . . 1 . . . . . . . . . . . . . Operator 13 | . . 1 . . . 1 . 9 . . 1 . . . 1 Watcher 38 | . 3 4 2 1 2 3 2 . 3 2 4 2 2 1 7 Swarmer 39 | . . 2 . 3 2 3 3 . . 3 13 . . 2 8 Grunt 47 | . 8 11 3 4 1 3 . . 9 . 2 . . 3 3 Brawler 5 | . . 2 1 . . 1 . . 1 . . . . . . Duelist 1 | . . 1 . . . . . . . . . . . . . Sentry 29 | . . 8 3 1 1 3 . 4 1 2 3 . . 1 2 Hunter 11 | . . . . . . . . . . 1 . 2 1 . 7 Programmer 64 | . . . . 1 . . . . 2 7 12 12 3 7 20 Cetus Guard 8 | . . . . . . . 8 . . . . . . . . Lightning 3 | . . . . . . . . . 3 . . . . . . Protovariant Y 1 | . . . . . . . . . . . . . 1 . . Best Kill Streak 11 | . 9 10 2 5 2 3 5 11 9 7 5 4 2 5 10 Combat Bots Only 10 | . 6 6 2 4 2 3 4 3 5 6 4 3 2 5 10 Max Kills in Single Turn 9 | . 1 2 1 2 1 2 3 1 9 2 3 1 2 2 3 Gunslinging 1 | . . . . . . . . . . . 1 . . . . Exploded 3 | . . 1 1 2 1 2 3 . 3 2 1 . . 2 3 Melee . | . . . . . . . . . . . . . . . . Uniques/NPCs Destroyed . | . . . . . . . . . . . . . . . . Combat | -11 -10 -9 -8 -7 -6 -6 -6 -6 -6 -5 -4 -3 -3 -2 -1 -------- Run | Jun Mat Mat Mat Fac Fac Ext Cet Arc Hub Fac Fac Res Tes Res Acc Damage Taken 16310 | . 335 832 298 447 208 899 1072 142 1495 969 852 959 3163 1016 3623 Core 1281 | . 43 113 25 74 31 32 95 12 198 47 88 57 186 73 207 Absorbed by Shields 7 | . . . . . . 7 . . . . . . . . . Reduced by Siege Mode 115 | . . . . . . . . . . 3 . . . . 112 Redirected to Shielding 20 | . . 20 . . . . . . . . . . . . . Regen/Repaired (Parts) 5493 | . . 109 117 9 . . . . . 2323 . 433 1615 423 464 Core Remaining (%) 85 | 100 82 71 95 89 . . . . 56 95 92 . 81 94 87 Volleys Fired 779 | . 43 72 29 16 18 50 37 34 49 66 67 50 44 55 149 Largest 3 | . 2 2 2 2 2 2 2 2 2 2 3 3 3 3 3 Hottest 212 | . 120 150 150 120 105 105 115 115 70 115 105 114 156 156 212 Shots Fired 1689 | . 77 134 46 31 33 95 67 59 97 108 201 150 118 125 348 Gun 1588 | . 69 78 31 30 30 90 60 59 97 108 201 150 117 124 344 Cannon 72 | . 5 47 13 1 . . 5 . . . . . 1 . . Launcher 26 | . . 9 2 . 3 5 2 . . . . . . 1 4 Special 3 | . 3 . . . . . . . . . . . . . . Kinetic 1036 | . 43 14 . . . 43 48 54 97 58 201 150 107 72 149 Thermal 438 | . 34 47 26 1 . . 17 5 . 50 . . 11 52 195 Explosive 15 | . . . . . 3 5 2 . . . . . . 1 4 Electromagnetic 200 | . . 73 20 30 30 47 . . . . . . . . . Robot Hit Streak 66 | . 30 37 33 31 13 16 20 15 24 27 35 51 66 26 59 Robot Miss Streak 3 | . 2 1 2 1 2 3 1 1 2 1 2 2 2 2 2 Penetration Max 1 | . . . . . . 1 1 1 1 1 1 1 1 1 1 Secondary Targets 20 | . 1 1 . . . . . . . 3 5 3 . 1 6 Max Gunslinging Chain 1 | . 1 1 . . . . . . . 1 1 1 . 1 1 Shots Hit Robots 1220 | . 65 114 40 26 30 68 60 47 50 70 120 122 83 77 248 Core Hits 605 | . 25 65 15 28 20 35 38 26 57 30 68 39 18 36 105 Critical Kills 64 | . 1 . . . . . 4 4 10 4 16 11 4 3 7 Critical Parts Destroyed 62 | . . . . . . 1 . 3 6 6 12 10 4 4 16 Critical Strikes 152 | . 1 . 3 . . 1 4 8 16 10 28 21 10 8 42 Burn 22 | . . . 3 . . . . . . . . . . . 19 Destroy 130 | . 1 . . . . 1 4 8 16 10 28 21 10 8 23 Melee Attacks . | . . . . . . . . . . . . . . . . Impact . | . . . . . . . . . . . . . . . . Slashing . | . . . . . . . . . . . . . . . . Piercing . | . . . . . . . . . . . . . . . . Sneak Attacks . | . . . . . . . . . . . . . . . . Combat Hostiles . | . . . . . . . . . . . . . . . . Follow-up Attacks . | . . . . . . . . . . . . . . . . Damage Inflicted 40319 | . 800 2606 922 959 867 1529 1733 1317 3597 2377 4458 3877 2495 3071 9711 Guns 32396 | . 640 1068 518 453 600 1314 1438 1317 1627 2034 4047 3877 2491 2769 8203 Cannons 1467 | . 88 924 300 . . . 151 . . . . . 4 . . Explosions 6322 | . . 603 104 506 267 214 144 . 1920 343 411 . . 302 1508 Melee . | . . . . . . . . . . . . . . . . Ramming 62 | . . 11 . . . 1 . . 50 . . . . . . Kinetic 21825 | . 280 114 . . . 676 1115 1191 1627 1187 4047 3877 2371 1845 3495 Thermal 10482 | . 520 1210 530 506 102 . 474 126 . 847 411 . 124 924 4708 Explosive 2603 | . . . . . 165 214 144 . . 343 . . . 302 1435 Electromagnetic 5347 | . . 1271 392 453 600 638 . . 1920 . . . . . 73 Impact . | . . . . . . . . . . . . . . . . Slashing . | . . . . . . . . . . . . . . . . Piercing . | . . . . . . . . . . . . . . . . Highest Corruption 12 | . . 1 . . . 1 1 . 10 4 8 4 12 1 3 Average Corruption 2 | . . 1 . . . 1 1 . 6 2 3 2 6 1 2 Corruption Purged 16 | . . . . . . . 1 . . . 6 5 . 1 3 Corruption Blocked . | . . . . . . . . . . . . . . . . Effects 84 | . . 10 . . . 1 2 . 5 19 24 6 3 1 13 Message Errors 11 | . . 1 . . . . 1 . 1 2 4 . . 1 1 Matter Fused 30 | . . 2 . . . 1 1 . 2 6 11 2 . . 5 Heat Flow Errors 9 | . . 3 . . . . . . . 4 1 . 1 . . Energy Discharges 7 | . . . . . . . . . . 1 2 1 . . 3 Parts Fused 1 | . . . . . . . . . . . 1 . . . . Data Loss (minor) 11 | . . 3 . . . . . . 1 1 3 1 . . 2 Data Loss (major) 4 | . . 1 . . . . . . . 2 . 1 . . . Misfires 5 | . . . . . . . . . . 2 1 . 1 . 1 Alerts 2 | . . . . . . . . . . 1 . 1 . . . Weapon Failures 4 | . . . . . . . . . 1 . 1 . 1 . 1 Overload Shots . | . . . . . . . . . . . . . . . . Overflow Damage 239 | . . 27 8 17 17 . 1 . 43 57 . . . . 69 Projectiles 14 | . . 14 . . . . . . . . . . . . . Explosions 225 | . . 13 8 17 17 . 1 . 43 57 . . . . 69 Melee . | . . . . . . . . . . . . . . . . Knockbacks . | . . . . . . . . . . . . . . . . Impact . | . . . . . . . . . . . . . . . . Kinetic . | . . . . . . . . . . . . . . . . Secondary . | . . . . . . . . . . . . . . . . Self-Inflicted Damage 488 | . . 73 24 46 46 15 18 . 118 87 . . . . 61 Shots 17 | . . 3 2 2 2 1 1 . 2 2 . . . . 2 Rammed 6 | . . 1 . . . 2 . . 3 . . . . . . Targets Rammed 7 | . . 1 . . . 2 . . 4 . . . . . . Kicked . | . . . . . . . . . . . . . . . . Crushed 1 | . . . . . . . . . 1 . . . . . . Highest Temperature 329 | . 227 198 306 171 78 180 25 . 19 303 156 58 329 303 321 Average Temperature 58 | . 61 68 97 49 27 40 8 . 5 65 16 19 88 81 86 Received Heat Transfer 2914 | . 330 396 288 102 63 366 90 36 480 30 73 . 480 90 90 Effects 1 | . . . . . . . . . . . . . 1 . . Energy Bleed 1 | . . . . . . . . . . . . . 1 . . Siege Activations 3 | . . . . . . . . . . 1 . . . . 2 Total Turns 49 | . . . . . . . . . . 11 . . . . 38 Longest Duration 27 | . . . . . . . . . . 11 . . . . 27 Robots Corrupted 7 | . . . 1 1 1 . . . 4 . . . . . . Combat Hostiles 5 | . . . 1 1 1 . . . 2 . . . . . . Parts Fried 36 | . . 6 6 . 6 1 . . 17 . . . . . . Impact Corruptions . | . . . . . . . . . . . . . . . . Robots Melted 1 | . . . . . . . . . . . . . . . 1 Combat Hostiles 1 | . . . . . . . . . . . . . . . 1 Parts Melted 31 | . . 3 3 . . . 1 . . . . . . . 24 Heat Transferred 14152 | . 1186 1656 1086 500 100 . 555 148 . 999 300 . 148 962 6512 Parts Sabotaged . | . . . . . . . . . . . . . . . . Parts Stolen . | . . . . . . . . . . . . . . . . Parts Stripped . | . . . . . . . . . . . . . . . . Power Chain Reactions 14 | . . 6 1 4 2 . . . 1 . . . . . . Missiles Intercepted . | . . . . . . . . . . . . . . . . Alert | -11 -10 -9 -8 -7 -6 -6 -6 -6 -6 -5 -4 -3 -3 -2 -1 ------- Run | Jun Mat Mat Mat Fac Fac Ext Cet Arc Hub Fac Fac Res Tes Res Acc Peak Influence 659 | . 248 293 293 184 152 199 279 182 659 415 563 273 143 351 401 Initial 242 | . . 1 1 . 48 54 45 . . 242 6 219 . 59 10 Average 108 | . 75 90 116 53 87 86 128 128 78 166 116 83 50 126 167 Maximum Alert Level 2 | . 1 1 1 . . . 1 . 2 2 2 1 . 1 2 Low Security (%) 80 | 100 78 79 75 100 100 100 72 100 90 56 78 78 100 79 62 Level 1 17 | . 21 20 24 . . . 27 . 7 37 14 21 . 20 34 Level 2 1 | . . . . . . . . . 2 5 7 . . . 2 Level 3 . | . . . . . . . . . . . . . . . . Level 4 . | . . . . . . . . . . . . . . . . Level 5 . | . . . . . . . . . . . . . . . . High Security . | . . . . . . . . . . . . . . . . Max Security . | . . . . . . . . . . . . . . . . Squads Dispatched 51 | . 1 3 1 3 . 3 . . 6 4 7 5 5 4 9 Investigation 7 | . 1 2 . 2 . 2 . . . . . . . . . Extermination 29 | . . . . 1 . . . . 2 3 6 5 3 3 6 Reinforcement 13 | . . 1 . . . 1 . . 3 1 1 . 2 1 3 Assault 1 | . . . . . . . . . 1 . . . . . . Garrison 1 | . . . 1 . . . . . . . . . . . . Intercept . | . . . . . . . . . . . . . . . . Searches Triggered . | . . . . . . . . . . . . . . . . Construction Impeded 2 | . . . . . . . . . 1 . 1 . . . . Haulers Reinforced 4 | . . . . . . . . . 1 . . . . 1 2 Active Scanning Responses . | . . . . . . . . . . . . . . . . Cargo Convoy Interrupts 1 | . . . . . . . . . . . . . . 1 . Stealth | -11 -10 -9 -8 -7 -6 -6 -6 -6 -6 -5 -4 -3 -3 -2 -1 --------- Run | Jun Mat Mat Mat Fac Fac Ext Cet Arc Hub Fac Fac Res Tes Res Acc Distress Signals 12 | . 1 2 . 1 . 1 2 . 1 . . . 1 1 2 Communications Jammed 50 | . . . . . . . . . 4 9 2 . 14 8 13 Distress Signals 47 | . . . . . . . . . 4 9 1 . 14 8 11 Times Spotted 352 | . 12 33 11 12 9 27 13 12 27 20 43 19 28 30 56 Peak Tracking Total 13 | . 4 5 3 5 3 5 5 1 9 4 6 3 13 7 8 Tactical Retreats 24 | . . 2 1 1 2 6 . . 2 . 4 . 1 2 3 Traps | -11 -10 -9 -8 -7 -6 -6 -6 -6 -6 -5 -4 -3 -3 -2 -1 ------- Run | Jun Mat Mat Mat Fac Fac Ext Cet Arc Hub Fac Fac Res Tes Res Acc Traps Triggered 12 | . . 4 1 2 . . . . . 3 . . 1 . 1 Indirectly 4 | . . 4 . . . . . . . . . . . . . Trap Hack Attempts . | . . . . . . . . . . . . . . . . Triggered . | . . . . . . . . . . . . . . . . Disarmed . | . . . . . . . . . . . . . . . . Reprogrammed 3 | . . . . . . . . . . . . . 3 . . Reused . | . . . . . . . . . . . . . . . . Traps Extracted . | . . . . . . . . . . . . . . . . Installed . | . . . . . . . . . . . . . . . . Triggered 3 | . . . . . 1 . . . . . . . . 2 . Machines | -11 -10 -9 -8 -7 -6 -6 -6 -6 -6 -5 -4 -3 -3 -2 -1 ---------- Run | Jun Mat Mat Mat Fac Fac Ext Cet Arc Hub Fac Fac Res Tes Res Acc Machines Disabled 59 | . . 1 . 1 1 3 . 3 16 10 13 2 4 . 5 Max in Single Turn 8 | . . 1 . 1 1 1 . 1 8 4 6 1 1 . 2 Garrison Access 6 | . . . 1 1 1 . . . . . 1 . . 1 1 Network Hub 2 | . . . . . . . . . 2 . . . . . . Machines Repaired . | . . . . . . . . . . . . . . . . Machines Sabotaged . | . . . . . . . . . . . . . . . . Overloaded Fab Kills . | . . . . . . . . . . . . . . . . Hacking | -11 -10 -9 -8 -7 -6 -6 -6 -6 -6 -5 -4 -3 -3 -2 -1 --------- Run | Jun Mat Mat Mat Fac Fac Ext Cet Arc Hub Fac Fac Res Tes Res Acc Machines Accessed 97 | . 8 10 3 6 2 10 3 . 2 9 8 9 11 7 9 Terminals 62 | . 6 7 . 1 1 10 3 . 2 4 5 5 7 4 7 Fabricators 10 | . . . . 2 . . . . . 2 1 3 2 . . Repair Stations 10 | . . 1 2 1 . . . . . 2 . 1 1 1 1 Recycling Units 2 | . 2 . . . . . . . . . . . . . . Scanalyzers 7 | . . 2 . 1 . . . . . 1 1 . 1 1 . Garrison Access 6 | . . . 1 1 1 . . . . . 1 . . 1 1 Total Hacks 549 | . 20 37 6 17 4 33 5 . 5 71 44 117 89 48 53 Successful 375 | . 11 30 5 10 1 15 5 . 2 55 34 89 68 23 27 Failed 174 | . 9 7 1 7 3 18 . . 3 16 10 28 21 25 26 Catastrophic 25 | . 1 . . 1 1 2 . . 1 2 3 2 2 6 4 Database Lockouts . | . . . . . . . . . . . . . . . . Manual 272 | . 13 11 . 3 1 24 . . 4 32 21 73 46 21 23 Terminals 377 | . 16 24 . 3 1 33 5 . 5 32 33 86 62 31 46 Fabricators 44 | . . . . 5 . . . . . 6 2 22 9 . . Repair Stations 60 | . . 2 4 3 . . . . . 16 . 9 10 10 6 Recycling Units 4 | . 4 . . . . . . . . . . . . . . Scanalyzers 52 | . . 11 . 5 . . . . . 17 8 . 8 3 . Garrison Access 12 | . . . 2 1 3 . . . . . 1 . . 4 1 Terminal Hacks 191 | . 8 15 . . . 13 5 . 2 13 19 55 37 8 16 Record 9 | . . 2 . . . 1 4 . . . . . 1 . 1 Part Schematic 19 | . . . . . . . . . . 3 3 11 2 . . Robot Schematic 4 | . . . . . . . . . . . . 2 2 . . Robot Analysis 24 | . 2 1 . . . . . . . 3 1 10 2 3 2 Prototype ID Bank 31 | . 1 1 . . . 2 . . . . 4 9 13 . 1 Open Door 5 | . . . . . . 2 1 . . . . . 1 . 1 Level Access Points 8 | . . 1 . . . . . . 1 1 1 1 1 1 1 Branch Access Points 5 | . . . . . . . . . . 1 1 1 1 . 1 Emergency Access Points 3 | . . 1 . . . . . . . . . 1 . 1 . Machine Index 5 | . . . . . . . . . . 1 1 1 1 . 1 Terminal Index 6 | . 1 . . . . 1 . . 1 1 . 1 . 1 . Fabricator Index 1 | . . . . . . . . . . . . . . 1 . Alert Level 5 | . . 1 . . . . . . . 1 1 . 1 . 1 Unreport Threat 19 | . 2 2 . . . 3 . . . 2 2 4 2 . 2 Locate Traps 6 | . . . . . . . . . . . . 2 3 . 1 Reprogram Traps 1 | . . . . . . . . . . . . . 1 . . Dispatch Records 3 | . . 2 . . . . . . . . . 1 . . . Maintenance Status 1 | . . . . . . . . . . . . 1 . . . Patrol Status 4 | . . 1 . . . 1 . . . . . 1 1 . . Transport Status 1 | . . . . . . . . . . . . 1 . . . Investigation Status 1 | . . . . . . . . . . . . 1 . . . Extermination Status 1 | . . . . . . . . . . . . . 1 . . Garrison Status 1 | . . . . . . . . . . . . 1 . . . Coupling Status 1 | . . . . . . . . . . . . 1 . . . Recall Investigation 2 | . 1 . . . . 1 . . . . . . . . . Recall Extermination 5 | . . . . . . . . . . . 2 1 . . 2 Recall Reinforcements 1 | . . . . . . . . . . . . . . . 1 Hauler Manifests 2 | . . . . . . . . . . . . 1 1 . . Registered Components 6 | . 1 1 . . . 1 . . . . . 1 1 1 . Registered Prototypes 4 | . . . . . . . . . . . 1 1 1 . 1 Zone Layout 7 | . . 2 . . . 1 . . . . 2 1 1 . . Fabricator Hacks 40 | . . . . 2 . . . . . 6 2 22 8 . . Network Status 2 | . . . . 2 . . . . . . . . . . . Load Schematic 19 | . . . . . . . . . . 3 1 11 4 . . Build 19 | . . . . . . . . . . 3 1 11 4 . . Repair Station Hacks 51 | . . 2 4 2 . . . . . 14 . 8 8 8 5 Scan Component 26 | . . 1 2 1 . . . . . 7 . 4 4 4 3 Repair 25 | . . 1 2 1 . . . . . 7 . 4 4 4 2 Recycling Unit Hacks 3 | . 3 . . . . . . . . . . . . . . Retrieve Components 3 | . 3 . . . . . . . . . . . . . . Scanalyzer 50 | . . 11 . 4 . . . . . 17 8 . 8 2 . Insert Component 28 | . . 6 . 3 . . . . . 9 5 . 4 1 . Analyze 22 | . . 5 . 1 . . . . . 8 3 . 4 1 . Garrison Access Hacks 6 | . . . 1 1 1 . . . . . 1 . . 1 1 Seal Access 6 | . . . 1 1 1 . . . . . 1 . . 1 1 Unauthorized Hacks 34 | . . 2 . 1 . 2 . . . 5 4 4 7 4 5 Terminals 33 | . . 2 . . . 2 . . . 5 4 4 7 4 5 Track 3 | . . . . . . . . . . . . . 2 . 1 Assimilate 5 | . . . . . . . . . . 2 . 1 . 1 1 Botnet 18 | . . 1 . . . 1 . . . 3 2 2 4 2 3 Detonate 1 | . . . . . . . . . . . 1 . . . . Operators 5 | . . . . . . 1 . . . . 1 1 1 1 . Search 1 | . . 1 . . . . . . . . . . . . . Fabricators 1 | . . . . 1 . . . . . . . . . . . Download 1 | . . . . 1 . . . . . . . . . . . Repair Stations . | . . . . . . . . . . . . . . . . Recycling Units . | . . . . . . . . . . . . . . . . Scanalyzers . | . . . . . . . . . . . . . . . . Garrison Access . | . . . . . . . . . . . . . . . . Data Cores Recovered 3 | . . . . . . 1 . . . . 1 . . . 1 Used 2 | . . . . . . 1 . . . . 1 . . . . Hacking Detections 75 | . 6 8 2 4 2 8 2 . 2 6 6 8 9 5 7 Full Trace Events 10 | . 3 4 . 1 . 2 . . . . . . . . . Feedback Events 1 | . . . . . . 1 . . . . . . . . . Corruption 1 | . . . . . . 1 . . . . . . . . . Feedback Blocked . | . . . . . . . . . . . . . . . . Robot Schematics Acquired 4 | . . . . . . . . . . . . 2 2 . . Robots Built 6 | . . . . . . . . . . . . . 6 . . Authchips . | . . . . . . . . . . . . . . . . Time 210 | . . . . . . . . . . . . . 210 . . Total Robot Build Rating 50 | . . . . . . . . . . . . . 50 . . Part Schematics Acquired 40 | . . 5 . 2 . . . . . 11 6 10 5 1 . Parts Built 18 | . . . . . . . . . . 3 2 12 1 . . Authchips . | . . . . . . . . . . . . . . . . Time 1346 | . . . . . . . . . . 382 53 849 62 . . Total Part Build Rating 120 | . . . . . . . . . . 22 12 79 7 . . Parts Repaired 25 | . . 1 2 1 . . . . . 7 . 4 4 4 2 Time 1127 | . . 26 32 19 . . . . . 576 . 126 144 123 81 Parts Recycled . | . . . . . . . . . . . . . . . . Recycled Matter . | . . . . . . . . . . . . . . . . Retrieved Matter . | . . . . . . . . . . . . . . . . Retrieved Components 5 | . 5 . . . . . . . . . . . . . . Parts Scanalyzed 23 | . . 5 . 2 . . . . . 8 3 . 4 1 . Part Schematics Acquired 21 | . . 5 . 1 . . . . . 8 3 . 3 1 . Parts Damaged 3 | . . . . . . . . . . 2 1 . . . . Bothacking | -11 -10 -9 -8 -7 -6 -6 -6 -6 -6 -5 -4 -3 -3 -2 -1 ------------ Run | Jun Mat Mat Mat Fac Fac Ext Cet Arc Hub Fac Fac Res Tes Res Acc Used RIF Installer . | . . . . . . . . . . . . . . . . Robots Hacked . | . . . . . . . . . . . . . . . . Non-combat . | . . . . . . . . . . . . . . . . Combat . | . . . . . . . . . . . . . . . . Robot Hacks Applied . | . . . . . . . . . . . . . . . . Relay Couplers Released . | . . . . . . . . . . . . . . . . Fabnet Peak Effective % . | . . . . . . . . . . . . . . . . Robots Rewired . | . . . . . . . . . . . . . . . . Allies Hacked 3 | . . . . . . . . . . . . . 1 2 . Hacks Repelled 1 | . . . . . . . . . . . . . 1 . . Allies | -11 -10 -9 -8 -7 -6 -6 -6 -6 -6 -5 -4 -3 -3 -2 -1 -------- Run | Jun Mat Mat Mat Fac Fac Ext Cet Arc Hub Fac Fac Res Tes Res Acc Total Allies 12 | . . . . . . 2 . . . 1 . 1 6 1 1 Largest Group 4 | . . . . . . 2 . . . 1 1 1 4 1 1 Highest-Rated Group 275 | . . . . . . 190 . . . 26 26 26 275 45 45 Highest-Rated Ally 159 | . . . . . . 159 . . . 26 26 26 69 45 45 Total Orders 17 | . . . . . . . . . . . 2 . 4 3 8 STAY 7 | . . . . . . . . . . . 1 . 2 1 3 ROAM 3 | . . . . . . . . . . . . . 1 . 2 FOLLOW 4 | . . . . . . . . . . . 1 . 1 1 1 EXPLORE 3 | . . . . . . . . . . . . . . 1 2 Ally Attacks 52 | . . . . . . 21 . . . . . . 31 . . Total Damage 2438 | . . . . . . 549 . . . . . . 1889 . . Kills 17 | . . . . . . 5 . . . . . . 12 . . Allies Corrupted 4 | . . . . . . . . . . . . . 2 . 2 Allies Melted 2 | . . . . . . 1 . . . . . . . 1 . Intel | -11 -10 -9 -8 -7 -6 -6 -6 -6 -6 -5 -4 -3 -3 -2 -1 ------- Run | Jun Mat Mat Mat Fac Fac Ext Cet Arc Hub Fac Fac Res Tes Res Acc Robot Analysis Total 24 | . 2 1 . . . . . . . 3 1 10 2 3 2 Derelict Logs Recovered . | . . . . . . . . . . . . . . . . Drone Launches 6 | . . . . . . . . . . . . . . 4 2 Drone Recoveries 3 | . . . . . . . . . . . . . . 3 . Exploration | -11 -10 -9 -8 -7 -6 -6 -6 -6 -6 -5 -4 -3 -3 -2 -1 ------------- Run | Jun Mat Mat Mat Fac Fac Ext Cet Arc Hub Fac Fac Res Tes Res Acc Turns Passed 19672 | 60 675 1801 446 1174 737 1146 450 469 1055 1997 2384 1854 1567 1409 2448 Spaces Moved 8913 | 34 320 734 212 702 548 766 199 219 466 839 906 802 633 597 936 Core 2 | 2 . . . . . . . . . . . . . . . Treads 6810 | 32 320 734 162 . . . 164 219 466 839 906 802 633 597 936 Legs . | . . . . . . . . . . . . . . . . Wheels 2101 | . . . 50 702 548 766 35 . . . . . . . . Hover . | . . . . . . . . . . . . . . . . Flight . | . . . . . . . . . . . . . . . . Fastest Speed 50 | 50 160 160 100 100 100 100 100 160 160 160 160 160 160 160 160 Average Speed 148 | 153 160 196 143 100 100 100 151 160 160 160 160 160 160 160 160 Slowest Speed 240 | 160 160 240 160 100 100 100 160 160 160 160 160 160 160 160 160 Overloaded Moves . | . . . . . . . . . . . . . . . . Propulsion Burnouts . | . . . . . . . . . . . . . . . . Robots Hopped . | . . . . . . . . . . . . . . . . Cave-ins Triggered 1 | . . . . . . . . . . . . . 1 . . Exploration Rate (%) 42 | 4 70 68 24 25 14 88 86 99 39 21 22 14 64 19 30 Regions Visited 15 Branch Regions 5 Pre-discovered Areas . | . . . . . . . . . . . . . . . . Known Exits Taken 15 | 1 1 1 1 1 1 1 1 1 1 1 1 1 1 1 . Unknown Exits Taken . | . . . . . . . . . . . . . . . . Scrap Searched . | . . . . . . . . . . . . . . . . Spaces Dug 283 | . . 1 . . . 27 . . 175 13 29 . 8 11 19 Terrain Destroyed 864 | . . 19 4 21 22 52 26 16 358 87 112 5 23 49 70 Melee . | . . . . . . . . . . . . . . . . Projectile 231 | . . 4 1 . . 1 4 16 34 23 72 5 23 22 26 AOE 632 | . . 15 3 21 22 51 22 . 324 64 40 . . 27 43 Terrain Rammed . | . . . . . . . . . . . . . . . . Walls Destroyed . | . . . . . . . . . . . . . . . . Machines Disabled . | . . . . . . . . . . . . . . . . Actions | -11 -10 -9 -8 -7 -6 -6 -6 -6 -6 -5 -4 -3 -3 -2 -1 --------- Run | Jun Mat Mat Mat Fac Fac Ext Cet Arc Hub Fac Fac Res Tes Res Acc Total 13771 | 39 406 955 307 1140 702 1046 286 281 673 1382 1671 1247 1092 946 1598 Wait 3464 | . 29 91 32 398 107 202 4 7 151 416 648 336 353 259 431 Move 8897 | 33 319 733 211 701 547 765 198 218 465 838 905 801 632 596 935 Hop . | . . . . . . . . . . . . . . . . Pick Up 101 | . 4 14 5 5 4 6 8 8 . 16 5 2 5 4 15 Fast Attach 83 | 6 5 10 7 3 1 3 8 1 . 5 . 8 11 6 9 Attach 59 | . . 3 1 2 2 1 4 2 . 7 4 5 10 8 10 Detach 32 | . . . 1 . 1 . 3 2 . . . 6 11 4 4 Swap 237 | . 3 17 9 9 13 12 10 3 4 24 40 32 16 11 34 Drop 111 | . 3 14 12 6 9 5 14 6 . 10 2 7 10 2 11 Fire 779 | . 43 72 29 16 18 50 37 34 49 66 67 50 44 55 149 Melee . | . . . . . . . . . . . . . . . . Ram 2 | . . . . . . 2 . . . . . . . . . Kick . | . . . . . . . . . . . . . . . . Crush 5 | . . 1 . . . . . . 4 . . . . . . Escape Stasis . | . . . . . . . . . . . . . . . . Rewire 1 | . . . . . . . . . . . . . . 1 . Trap . | . . . . . . . . . . . . . . . . Miscellaneous . | . . . . . . . . . . . . . . . . Route ------- -11/Junkyard -10/Materials (discovered 3 exits: *Mat x2 / *Min) -9/Materials (discovered 5 exits: *Mat x3 / *Min x2) -8/Materials -7/Factory (discovered 2 exits: *Fac / *Low) -6/Factory (discovered 2 exits: *Fac / *Ext) -6/Extension (discovered 2 exits: *Fac / *Cet) -6/Cetus (discovered 2 exits: *Fac / *Arc) -6/Archives (discovered 3 exits: *Fac / *Hub x2) -6/Hub_04(d) (discovered 4 exits: *Fac x4) -5/Factory (discovered 6 exits: *Fac x4 / Upp x2) -4/Factory (discovered 6 exits: *Res x4 / Upp x2) -3/Research (discovered 6 exits: *Res x3 / Arm / *Tes x2) -3/Testing -2/Research (discovered 3 exits: *Acc x3) -1/Access (discovered 2 exits: *Sur / Com) To Epsilon Eridani History --------- Turn | Location | Event 7 | -11/Junkyard | Identified exit to Materials 7 | -11/Junkyard | Discovered exit to Materials (range 14) 61 | -11/Junkyard | Entered Materials 61 | -10/Materials | Evolved 1 slot: Utility x1 209 | -10/Materials | Identified exit to Mines 209 | -10/Materials | Discovered exit to Mines (range 14) 303 | -10/Materials | Build established: Hacker-Mutant 439 | -10/Materials | Identified exit to Materials 439 | -10/Materials | Discovered exit to Materials (range 9) 694 | -10/Materials | Discovered exit to Materials (range 16) 736 | -10/Materials | Entered another Materials area 736 | -9/Materials | Evolved 2 slots: Utility x2 1138 | -9/Materials | Identified exit to Materials 1209 | -9/Materials | Identified exit to Mines 1209 | -9/Materials | Discovered exit to Mines (range 15) 1402 | -9/Materials | Repaired Lgt. Treads 1719 | -9/Materials | Discovered exit to Mines (range 6) 2537 | -9/Materials | Entered another Materials area 2537 | -8/Materials | Evolved 2 slots: Propulsion x2 2567 | -8/Materials | Repaired Lgt. Treads 2589 | -8/Materials | Garrison activated, responded to threat 2771 | -8/Materials | Repaired Lgt. Deuterium Engine 2962 | -8/Materials | Identified exit to Factory 2962 | -8/Materials | Discovered exit to Factory (range 4) 2983 | -8/Materials | Entered Factory 2983 | -7/Factory | Evolved 2 slots: Propulsion x2 3202 | -7/Factory | Build established: Hacker-Skirmisher 3344 | -7/Factory | Identified exit to Lower Caves 3344 | -7/Factory | Discovered exit to Lower Caves (range 9) 4103 | -7/Factory | Repaired Imp. Terrain Scanner 4113 | -7/Factory | Identified exit to Factory 4113 | -7/Factory | Discovered exit to Factory (range 15) 4157 | -7/Factory | Entered another Factory area 4157 | -6/Factory | Evolved 2 slots: Utility x2 4488 | -6/Factory | Identified exit to Factory 4488 | -6/Factory | Discovered exit to Factory (range 15) 4879 | -6/Factory | Identified exit to Extension 4879 | -6/Factory | Discovered exit to Extension (range 16) 4894 | -6/Factory | Entered Extension 4909 | -6/Extension | Disrupted transfer network 5411 | -6/Extension | Rescued a captive Derelict 5443 | -6/Extension | Rescued A7 5485 | -6/Extension | Spotted B-75 Beast 5492 | -6/Extension | Spotted B-75 Beast 5589 | -6/Extension | Identified exit to Cetus 5589 | -6/Extension | Discovered exit to Cetus (range 16) 5591 | -6/Extension | Discovered exit to Factory (range 14) 5594 | -6/Extension | Build established: Hacker-Mutant 6040 | -6/Extension | Entered Cetus 6057 | -6/Cetus | Spotted Cetus Guard 6057 | -6/Cetus | Spotted Cetus Guard 6065 | -6/Cetus | Spotted Cetus Guard 6068 | -6/Cetus | Spotted Cetus Guard 6077 | -6/Cetus | Destroyed Cetus Guard 6093 | -6/Cetus | Destroyed Cetus Guard 6109 | -6/Cetus | Destroyed Cetus Guard 6117 | -6/Cetus | Destroyed Cetus Guard 6140 | -6/Cetus | Lost 6 parts (2n3u1w) 6278 | -6/Cetus | Identified exit to Archives 6278 | -6/Cetus | Discovered exit to Archives (range 21) 6313 | -6/Cetus | Spotted Cetus Guard 6314 | -6/Cetus | Spotted Cetus Guard 6319 | -6/Cetus | Spotted Cetus Guard 6323 | -6/Cetus | Spotted Cetus Guard 6329 | -6/Cetus | Destroyed Cetus Guard 6332 | -6/Cetus | Destroyed Cetus Guard 6335 | -6/Cetus | Discovered exit to Factory (range 22) 6346 | -6/Cetus | Destroyed Cetus Guard 6361 | -6/Cetus | Destroyed Cetus Guard 6406 | -6/Cetus | Met Revision 17 6490 | -6/Cetus | Entered Archives 6609 | -6/Archives | Identified exit to Hub_04(d) 6609 | -6/Archives | Discovered exit to Hub_04(d) (range 22) 6638 | -6/Archives | Discovered exit to Hub_04(d) (range 21) 6674 | -6/Archives | Discovered exit to Factory (range 14) 6815 | -6/Archives | Build established: Scavenger-Mutant 6837 | -6/Archives | Unable to access archive contents 6959 | -6/Archives | Entered Hub_04(d) 7267 | -6/Hub_04(d) | Build established: Scavenger-Skirmisher 7914 | -6/Hub_04(d) | Network Hub disabled 7923 | -6/Hub_04(d) | Spotted Lightning 7925 | -6/Hub_04(d) | Spotted Lightning 7925 | -6/Hub_04(d) | Spotted Lightning 7939 | -6/Hub_04(d) | Destroyed Lightning 7944 | -6/Hub_04(d) | Destroyed Lightning 7962 | -6/Hub_04(d) | Destroyed Lightning 7990 | -6/Hub_04(d) | Network Hub disabled 7990 | -6/Hub_04(d) | Spotted Lightning 7990 | -6/Hub_04(d) | Spotted Lightning 7990 | -6/Hub_04(d) | Spotted Lightning 7995 | -6/Hub_04(d) | System corruption reached 10% 8009 | -6/Hub_04(d) | First assault squad dispatched 8014 | -6/Hub_04(d) | Entered Factory 8014 | -5/Factory | Evolved 2 slots: Utility x2 8251 | -5/Factory | Spotted B-75 Beast 8632 | -5/Factory | Repaired Broken Adv. KE Penetrator 8697 | -5/Factory | Repaired Broken Adv. Variable Charge Gun 8755 | -5/Factory | Repaired Centrium Heavy Treads 9085 | -5/Factory | Identified exit to Factory 9085 | -5/Factory | Identified exit to Upper Caves 9240 | -5/Factory | Fabricated Adv. KE Penetrator? 9268 | -5/Factory | Repaired Centrium Heavy Treads? 9416 | -5/Factory | Repaired Centrium Heavy Treads 9425 | -5/Factory | Fabricated Centrium Medium Armor Plating? 9449 | -5/Factory | Fabricated Adv. KE Penetrator? 9544 | -5/Factory | Repaired Quantum Reactor? 9683 | -5/Factory | Build established: Hacker-Mutant 9696 | -5/Factory | Repaired Centrium Medium Armor Plating 10011 | -5/Factory | Entered another Factory area 10011 | -4/Factory | Accompanied by 1 ally 10011 | -4/Factory | Evolved 2 slots: Utility x1, Weapon x1 10323 | -4/Factory | Build established: Wizard-Skirmisher 10833 | -4/Factory | Identified exit to Research 10965 | -4/Factory | Identified exit to Upper Caves 12288 | -4/Factory | Fabricated Adv. System Restoration Module (x2) 12395 | -4/Factory | Entered Research 12395 | -3/Research | Evolved 2 slots: Utility x2 12459 | -3/Research | Repaired Adv. KE Penetrator 12494 | -3/Research | Repaired Adv. KE Penetrator 12531 | -3/Research | Repaired Centrium Heavy Treads 12556 | -3/Research | Repaired Quantum Reactor 12679 | -3/Research | Identified exit to Research 12834 | -3/Research | Identified exit to Armory 12834 | -3/Research | Identified exit to Testing 12924 | -3/Research | Fabricated Huge Storage Unit (x1) 13055 | -3/Research | Fabricated Exp. Signal Interpreter? 13108 | -3/Research | Fabricated Exp. Terrain Scan Processor (x1) 13157 | -3/Research | Fabricated Adv. Terrain Scanner? 13297 | -3/Research | Fabricated Adv. Transmission Jammer? 13325 | -3/Research | Fabricated Adv. KE Penetrator? 13507 | -3/Research | Spotted B-86 Titan 13654 | -3/Research | Fabricated Exp. Sensor Array (x1) 13757 | -3/Research | Fabricated Exp. Terrain Scanner (x1) 13863 | -3/Research | Fabricated Helical Railgun (x1) 13958 | -3/Research | Fabricated Helical Railgun? 13970 | -3/Research | Fabricated Helical Railgun? 14249 | -3/Research | Entered Testing 14318 | -3/Testing | Spotted PY-L7Z4T43N3U 14474 | -3/Testing | Spotted PY-J27YLMZ2PB 14563 | -3/Testing | Destroyed PY-J27YLMZ2PB 14577 | -3/Testing | Found Prototype Device 14577 | -3/Testing | Identified Thermal Barrier 14582 | -3/Testing | Found Exp. Target Analyzer 14622 | -3/Testing | Found Prototype Ballistic Cannon 14622 | -3/Testing | Identified Perforator 14833 | -3/Testing | Fabricated Exp. Optical Array? 14919 | -3/Testing | Fabricated H-88 Terminator? 15061 | -3/Testing | Fabricated X-77 Beamer (x2) 15144 | -3/Testing | Fabricated H-88 Terminator (x2) 15206 | -3/Testing | Found Prototype Energy Cannon 15206 | -3/Testing | Identified Imp. Potential Cannon 15504 | -3/Testing | Repaired Exp. Sensor Array 15575 | -3/Testing | Repaired Centrium Heavy Treads 15612 | -3/Testing | Repaired Centrium Heavy Treads? 15672 | -3/Testing | Repaired Centrium Heavy Treads 15794 | -3/Testing | Crushed by falling debris 15805 | -3/Testing | System corruption reached 10% 15816 | -3/Testing | Entered Research 15816 | -2/Research | Evolved 2 slots: Utility x2 15825 | -2/Research | Lost 3 parts (2u1w) 15830 | -2/Research | Identified exit to Access 15830 | -2/Research | Discovered exit to Access (range 18) 16957 | -2/Research | Build established: Hacker-Skirmisher 16965 | -2/Research | Cargo convoy interrupted 17045 | -2/Research | Repaired Helical Railgun 17084 | -2/Research | Repaired Helical Railgun 17119 | -2/Research | Repaired Adv. Variable Charge Gun 17148 | -2/Research | Repaired Adv. System Restoration Module 17225 | -2/Research | Entered Access 17225 | -1/Access | Accompanied by 1 ally 17225 | -1/Access | Evolved 2 slots: Power x1, Utility x1 17382 | -1/Access | Found Exp. Target Analyzer 17385 | -1/Access | Found Exp. Target Analyzer 17712 | -1/Access | Spotted B-99 Colossus 18120 | -1/Access | Identified exit to Surface 18120 | -1/Access | Identified exit to Command 18200 | -1/Access | Spotted B-99 Colossus 18290 | -1/Access | Repaired Centrium Heavy Treads 18331 | -1/Access | Build established: Wizard-Skirmisher 18344 | -1/Access | Repaired Broken Helical Railgun 18491 | -1/Access | Destroyed 10 combat bots 19673 | *** | Escaped! Last Messages --------------- 19551_ Slug penetrates A-15 Conveyor. 19559_ System corrupted: Energy discharge (-236). 19573_ W-44 Eye suffers critical hit (Destroy). 19573_ Destroyed Lgt. Antimatter Reactor. 19575_ W-44 Eye destroyed. 19583_ A-15 Conveyor suffers critical hit (Burn). 19583_ Slug penetrates A-15 Conveyor. 19583_ A-15 Conveyor destroyed. 19583_ Slug penetrates Wall. 19586_ System corrupted: Energy discharge (-147). 19590_ Acquired Railgun. 19591_ Acquired 30 matter. 19594_ Dropped Railgun. 19594_ Acquired Railgun. 19596_ Dropped Lgt. Ion Engine. 19630_ System corrupted: Component data lost. 19660_ Connecting with Terminal... >>Open(Door) Sealed Barrier opened. 19665_ The Access Shell folds into the floor. Map ----- +----------------------------------------------------+ | ??????????????????? ? # # ## ## # | | ????????????????????#### + ## ## # | | ???????????????????##### ?# ## ## # | | ???????????????????##### ######################+# | | ????????????????????#### ############### # | | ????????????????????#### # # | | ????????????????????#?## # " # | | ??????????????????????################ # """ # | | ????????????????????################## + """ # | | ????????????????????# # # " !# | | ????????????????????# # # # | | ????????????????????# === # # # | | ????????????????????# === !*]# # # | | ????????????????????# === ]% # ########## | | ????????????????????# ![]# ########## | | ????????????????????# + ########## | | ????????????????????# # ########## | | ????????????????????# # ########## | | ????????????????????#######"########## ########## | | ??????????????????????????# ####?#?#?# ####?##### | | ????????????????????########## ####### ########?# | | ????????????????????" ##?####### | | ??????????????BB????" ########## | | ??????????????BB????" #????????? | | ????????????????????" = #????????? | | ????????????????????" "@ !%!#????????? | | ????????????????????" "" ! #????????? | | ????????????????????" #????????? | | ??????????????BB????" #????????? | | ??????????????BB????" """ """ #????????? | | ????????????????????" """T""" #????????? | | ????????????????????########## ####### #????????? | | ?????????????????????????????###?????# #????????? | | ?????????????????????????????????????? #????????? | | ?????????????????????????????????????? #????????? | | ?????????????????????????????????????? #????????? | | ?????????????????????????????????????? +????????? | | ?????????????????????????????????????? #????????? | | ?????????????????????????????????????? #????????? | | ?????????????????????????????????????? +????????? | | ??????????????????????????????????????###????????? | | ?????????????????????????????????????????????????? | | ?????????????????????????????????????????????????? | | ?????????????????????????????????????????????????? | | ?????????????????????????????????????????????????? | | ?????????????????????????????????????????????????? | | ?????????????????????????????????????????????????? | | ?????????????????????????????????????????????????? | | ?????????????????????????????????????????????????? | | ?????????????????????????????????????????????????? | +----------------------------------------------------+ Best States ------------- Heat Dissipation 135 Coolant Potential 50 Energy Generation 45 Energy Capacity 600 Matter Stores 300 Matter Capacity 300 Sight Range 23 Robot Scan Range 20 Terrain Scan Range 30 Terrain Scan Density 1010 Jamming Range 16 EM Shielding 3 Armor Coverage 600 Resistance: KI 35 Resistance: TH 85 Resistance: EX 35 Resistance: EM 35 Resistance: I 35 Resistance: S 35 Resistance: P 35 Utility Shielding 33 Evasion (%) 40 Targeting Accuracy 8 Target Analysis 15 Core Analysis 9 Recoil Reduction 6 Offensive Hacking 68 Defensive Hacking 24 Item Schematics ----------------- Imp. Medium Laser | -9/Materials | Scanalyzed Mni. Grenade Launcher | -9/Materials | Scanalyzed Med. Storage Unit | -9/Materials | Scanalyzed Lgt. Treads | -9/Materials | Scanalyzed Imp. Light Cannon | -9/Materials | Scanalyzed Hvy. Machine Gun | -7/Factory | Downloaded Lgt. Armor Plating | -7/Factory | Scanalyzed Adv. KE Penetrator | -5/Factory | Scanalyzed Imp. Hacking Suite | -5/Factory | Scanalyzed Quantum Reactor | -5/Factory | Scanalyzed Adv. Terrain Scan Processor | -5/Factory | Scanalyzed Centrium Medium Armor Plating | -5/Factory | Scanalyzed Cooling System | -5/Factory | Scanalyzed Imp. System Shield | -5/Factory | Scanalyzed Adv. Variable Charge Gun | -5/Factory | Scanalyzed Adv. System Restoration Module | -5/Factory | Hacked Adv. Terrain Scanner | -5/Factory | Hacked Cmb. Gravmag System | -5/Factory | Hacked Adv. Transmission Jammer | -4/Factory | Hacked Huge Storage Unit | -4/Factory | Hacked Hcp. Storage Unit | -4/Factory | Hacked Micro-nuke Launcher | -4/Factory | Scanalyzed Dynamic Insulation System | -4/Factory | Scanalyzed Adv. Cooling System | -4/Factory | Scanalyzed Exp. Hacking Suite | -3/Research | Hacked Adv. Signal Interpreter | -3/Research | Hacked Exp. Signal Interpreter | -3/Research | Hacked Exp. Terrain Scan Processor | -3/Research | Hacked Lrn. Terrain Scanner | -3/Research | Hacked Exp. Optical Array | -3/Research | Hacked Helical Railgun | -3/Research | Hacked Exp. Sensor Array | -3/Research | Hacked Exp. Terrain Scanner | -3/Research | Hacked Exp. Matter Compressor | -3/Research | Hacked Lgt. Regenerative Plating | -3/Testing | Hacked Hvy. Regenerative Plating | -3/Testing | Hacked Exp. Heat Sink | -3/Testing | Scanalyzed Exp. Energy Well | -3/Testing | Scanalyzed Imp. Dynamic Insulation System | -3/Testing | Scanalyzed Adv. Heavy Siege Treads | -2/Research | Scanalyzed Robot Schematics ------------------ H-88 Terminator | -3/Research | Hacked G-73 Enforcer | -3/Research | Hacked X-77 Beamer | -3/Testing | Hacked Y-72 Warden | -3/Testing | Hacked Fabricated ------------ Adv. KE Penetrator | x1 | -5/Factory Centrium Medium Armor Plating | x1 | -5/Factory Adv. KE Penetrator | x1 | -5/Factory Adv. System Restoration Module | x2 | -4/Factory Huge Storage Unit | x1 | -3/Research Exp. Signal Interpreter | x1 | -3/Research Exp. Terrain Scan Processor | x1 | -3/Research Adv. Terrain Scanner | x2 | -3/Research Adv. Transmission Jammer | x1 | -3/Research Adv. KE Penetrator | x1 | -3/Research Exp. Sensor Array | x1 | -3/Research Exp. Terrain Scanner | x1 | -3/Research Helical Railgun | x1 | -3/Research Helical Railgun | x1 | -3/Research Helical Railgun | x1 | -3/Research Exp. Optical Array | x1 | -3/Testing H-88 Terminator | x2 | -3/Testing X-77 Beamer | x2 | -3/Testing H-88 Terminator | x2 | -3/Testing Alien Tech Used ----------------- None Achievements -------------- Left-hand Path Challenges ------------ None Game ------ Seed FlyingParticleLoader Manual? 0 Play Time 05:46:12 Cumulative 320.5 hours Start 2023.05.14 @ 16:49:03 End 2023.05.17 @ 22:04:17 Sessions 13 Manual Loads 0 Difficulty Explorer Special Mode None Game No. 99 Rogue 7 Adventurer 71 Explorer 21 Win Type 0 Total 9 Types 8/0/1/0/0/0/0/0/0 Lore% 71 Gallery% 78 Achievement% 65 Wizard Run 0 Options --------- ASCII 0 Keyboard 0 Movement Mouse Keybinds 0 Fullscreen 2 Font 20/Terminus Map View 66x50 Tactical HUD 1 Map Filters NONE Filters NONE Steam 1 RUN: 8d398426-2db4-4af9-8744-a9b475657c83